fUST/lending_fUST_20250428
["ID","MTS","AMOUNT","RATE_DAILY","PERIOD"]
[359218655,1745833843350,-2641.6,0.00027781,30]
[359218656,1745833843359,-1970.16644162,0.00027781,30]
[359218657,1745833843375,-627.03090985,0.00027781,30]
[359218663,1745833846069,-400.0,0.0002778,2]
[359218664,1745833846081,-44.40264853,0.00027781,30]
[359218665,1745833846091,-2641.6,0.00027781,30]
[359218666,1745833846101,-474.19867536,0.00027781,30]
[359218876,1745834743149,-151.0,0.00018585,2]
[359218877,1745834743169,-151.0,0.00019954,2]
[359218878,1745834743189,-151.0,0.00021323,2]
[359218879,1745834743211,-151.0,0.00022692,2]
[359218880,1745834743231,-220.48538996,0.00024061,2]
[359218881,1745834743252,-500.0,0.00025,30]
[359218882,1745834743272,-502.32051391,0.00025,30]
[359218916,1745834907434,-471.11456813,0.00025,30]
[359218917,1745834907461,-731.62393071,0.00026,30]
[359218918,1745834907487,-500.0,0.00026,30]
[359218919,1745834907512,-500.0,0.00026,30]
[359218920,1745834907539,-731.62393071,0.00026,30]
[359218921,1745834907565,-731.62393071,0.00026,30]
[359218922,1745834907590,-221.2576634,0.00026,30]
[359218923,1745834907614,-280.74835689,0.00026,30]
[359218924,1745834907644,-155.02,0.000266,31]
[359218925,1745834907671,-591.679829,0.00027397,120]
[359218926,1745834907747,-2167.40132464,0.00027781,30]
[359218927,1745834907773,-2641.7,0.00027781,30]
[359218928,1745834907798,-157.3664837,0.00027808,30]
[359218929,1745834907823,-157.3664837,0.00027808,30]
[359218930,1745834907849,-157.3664837,0.00027808,30]
[359218931,1745834907873,-157.3664837,0.00027808,30]
[359218932,1745834907899,-840.59878455,0.00027808,30]
[359218933,1745834907923,-160.0,0.00027808,30]
[359218934,1745834907949,-160.0,0.00027808,30]
[359218935,1745834907974,-421.20781996,0.00027808,30]
[359218936,1745834907998,-160.0,0.00027808,30]
[359218937,1745834908055,-157.3664837,0.00027973,30]
[359218938,1745834908081,-157.3664837,0.00027973,30]
[359218939,1745834908109,-300.8345408,0.00027973,30]
[359218940,1745834908134,-749.2352521,0.00027973,30]
[359218941,1745834908164,-949.93735693,0.00028,30]
[359218942,1745834908224,-353.2889257,0.00028202,30]
[359218943,1745834908294,-155.02,0.000287,31]
[359218944,1745834908321,-155.02,0.000287,31]
[359218945,1745834908345,-2000.0,0.00028767,120]
[359218946,1745834908372,-361.7792701,0.00028959,30]
[359218947,1745834908393,-361.7792701,0.00028959,30]
[359218948,1745834908412,-361.7792701,0.00028959,30]
[359218949,1745834908568,-361.7792701,0.00028959,30]
[359218950,1745834908594,-361.7792701,0.00028959,30]
[359218951,1745834908620,-728.515713,0.00028959,30]
[359218952,1745834908652,-2000.0,0.00029041,120]
[359218953,1745834908678,-200.0,0.000291,120]
[359218954,1745834908721,-2000.0,0.00029315,120]
[359218955,1745834908747,-160.0,0.000294,30]
[359218956,1745834908785,-2000.0,0.00029589,120]
[359218957,1745834908824,-314.7329674,0.00029845,30]
[359218958,1745834908850,-159.6063634,0.00029845,30]
[359218959,1745834908878,-1151.570366,0.00029845,30]
[359218960,1745834908905,-2000.0,0.00029863,120]
[359218961,1745834908938,-418538.29986419,0.0003,60]
[359218962,1745834908964,-1000.0,0.0003,120]
[359218963,1745834908989,-6395.47,0.0003,30]
[359218964,1745834909015,-313.28589057,0.0003,120]
[359218965,1745834909040,-160.0,0.0003,120]
[359218966,1745834909068,-2000.0,0.00030137,120]
[359218967,1745834909099,-153.0,0.00030247,30]
[359218968,1745834909126,-153.0,0.00030274,30]
[359218969,1745834909151,-153.0,0.00030274,30]
[359218970,1745834909181,-153.0,0.00030274,30]
[359218971,1745834909207,-153.0,0.00030274,30]
[359218972,1745834909231,-153.0,0.00030274,30]
[359218973,1745834909256,-153.0,0.00030274,30]
[359218974,1745834909282,-153.0,0.00030274,30]
[359218975,1745834909307,-153.0,0.00030274,30]
[359218976,1745834909332,-153.0,0.00030274,30]
[359218977,1745834909358,-153.0,0.00030274,30]
[359218978,1745834909382,-153.0,0.00030274,30]
[359218979,1745834909407,-153.0,0.00030274,30]
[359218980,1745834909437,-160.0,0.000304,33]
[359218981,1745834909462,-157.3664837,0.00030466,30]
[359218982,1745834909492,-200.0,0.000307,120]
[359218983,1745834909524,-155.02,0.000309,31]
[359218984,1745834909553,-155.02,0.000309,31]
[359218985,1745834909579,-2000.0,0.00030959,120]
[359218986,1745834909604,-108841.6955339,0.00031,120]
[359218987,1745834909629,-160.0,0.00031,120]
[359218988,1745834909653,-313.28589057,0.00031,120]
[359218989,1745834909678,-160.0,0.00031,120]
[359218990,1745834909704,-421.20781996,0.00031,120]
[359218991,1745834909729,-160.0,0.00031,120]
[359218992,1745834909757,-153.0,0.00031096,30]
[359218993,1745834909783,-153.0,0.00031096,30]
[359218994,1745834909808,-153.0,0.00031096,30]
[359218995,1745834909833,-153.0,0.00031096,30]
[359218996,1745834909859,-153.0,0.00031096,30]
[359218997,1745834909885,-153.0,0.00031096,30]
[359218998,1745834909916,-153.0,0.00031096,30]
[359218999,1745834909950,-153.0,0.00031096,30]
[359219000,1745834909978,-2000.0,0.00031233,120]
[359219001,1745834910007,-157.3664837,0.00031288,30]
[359219002,1745834910038,-160.0,0.000314,36]
[359219003,1745834910065,-2000.0,0.00031507,120]
[359219004,1745834910096,-2000.0,0.00031781,120]
[359219005,1745834910122,-367.0,0.0003181,31]
[359219006,1745834910153,-591.679829,0.00031963,120]
[359219007,1745834910181,-1000.0,0.00032,120]
[359219008,1745834910210,-2000.0,0.00032055,120]
[359219009,1745834910241,-200.0,0.000323,120]
[359219010,1745834910267,-297.1510803,0.00032311,30]
[359219011,1745834910293,-2000.0,0.00032329,120]
[359219012,1745834910320,-160.0,0.000324,39]
[359219013,1745834910348,-2000.0,0.00032603,120]
[359219014,1745834910378,-160.0,0.000328,40]
[359219015,1745834910404,-300.0,0.00032876,30]
[359219016,1745834910430,-300.0,0.00032876,30]
[359219017,1745834910455,-300.0,0.00032876,30]
[359219018,1745834910481,-300.0,0.00032876,30]
[359219019,1745834910506,-300.0,0.00032876,30]
[359219020,1745834910531,-300.0,0.00032876,30]
[359219021,1745834910558,-300.0,0.00032876,30]
[359219022,1745834910590,-300.0,0.00032876,30]
[359219023,1745834910619,-300.0,0.00032876,30]
[359219024,1745834910810,-300.0,0.00032876,30]
[359219025,1745834910839,-300.0,0.00032876,30]
[359219026,1745834910866,-445.19979243,0.00032876,30]
[359219027,1745834910893,-500.0,0.00032876,120]
[359219028,1745834910919,-500.0,0.00032876,120]
[359219029,1745834910947,-500.0,0.00032876,120]
[359219030,1745834910973,-500.0,0.00032876,120]
[359219031,1745834911000,-611.75065938,0.00032876,120]
[359219032,1745834911027,-270.9542271,0.00032877,120]
[359219033,1745834911053,-2000.0,0.00032877,120]
[359219034,1745834911079,-2330.68,0.000329,30]
[359219035,1745834911106,-1000.0,0.00033,120]
[359219036,1745834911137,-155.02,0.00033,31]
[359219037,1745834911170,-155.02,0.00033,31]
[359219038,1745834911203,-2000.0,0.00033151,120]
[359219039,1745834911230,-153.0,0.00033233,30]
[359219040,1745834911255,-153.0,0.00033233,30]
[359219041,1745834911280,-153.0,0.00033233,30]
[359219042,1745834911307,-153.0,0.00033233,30]
[359219043,1745834911334,-160.0,0.000334,42]
[359219044,1745834911360,-2000.0,0.00033425,120]
[359219045,1745834911386,-153.0,0.00033562,30]
[359219046,1745834911411,-153.0,0.00033562,30]
[359219047,1745834911441,-153.0,0.00033562,30]
[359219048,1745834911467,-153.0,0.00033562,30]
[359219049,1745834911491,-153.0,0.00033562,30]
[359219050,1745834911516,-153.0,0.00033562,30]
[359219051,1745834911543,-2000.0,0.00033699,120]
[359219052,1745834911570,-160.0,0.000338,43]
[359219053,1745834911596,-158.55074,0.0003384,30]
[359219054,1745834911624,-200.0,0.000339,120]
[359219055,1745834911649,-2000.0,0.00033973,120]
[359219056,1745834911674,-1254.3341648,0.00034,60]
[359219057,1745834911700,-1000.0,0.00034,120]
[359219058,1745834911725,-500.0,0.00034,30]
[359219059,1745834911752,-2000.0,0.00034247,120]
[359219060,1745834911777,-153.0,0.00034384,30]
[359219061,1745834911802,-153.0,0.00034384,30]
[359219062,1745834911828,-153.0,0.00034384,30]
[359219063,1745834911854,-153.0,0.00034384,30]
[359219064,1745834911878,-153.0,0.00034384,30]
[359219065,1745834911902,-153.0,0.00034384,30]
[359219066,1745834911927,-153.0,0.00034384,30]
[359219067,1745834911954,-153.0,0.00034384,30]
[359219068,1745834911979,-153.0,0.00034384,30]
[359219069,1745834912004,-153.0,0.00034384,30]
[359219070,1745834912030,-153.0,0.00034384,30]
[359219071,1745834912054,-153.0,0.00034384,30]
[359219072,1745834912080,-153.0,0.00034384,30]
[359219073,1745834912105,-153.0,0.00034384,30]
[359219074,1745834912130,-153.0,0.00034384,30]
[359219075,1745834912158,-153.0,0.00034384,30]
[359219076,1745834912184,-153.0,0.00034384,30]
[359219077,1745834912221,-153.0,0.00034384,30]
[359219078,1745834912248,-153.0,0.00034384,30]
[359219079,1745834912273,-153.0,0.00034384,30]
[359219080,1745834912299,-153.0,0.00034384,30]
[359219081,1745834912324,-153.0,0.00034384,30]
[359219082,1745834912350,-318.0,0.000344,44]
[359219083,1745834912375,-405.5796153,0.00034503,30]
[359219084,1745834912402,-2000.0,0.00034521,120]
[359219085,1745834912426,-306.0,0.00034548,30]
[359219086,1745834912454,-174.328936,0.0003456,30]
[359219087,1745834912480,-2330.68,0.000346,30]
[359219088,1745834912506,-2000.0,0.00034795,120]
[359219089,1745834912533,-160.0,0.000348,46]
[359219090,1745834912560,-3800.0,0.000349,90]
[359219091,1745834912586,-2000.0,0.00035,120]
[359219092,1745834912612,-840.59878455,0.00035,30]
[359219093,1745834912637,-334.0,0.00035,120]
[359219094,1745834912662,-1137.88408562,0.00035,40]
[359219095,1745834912689,-1970.11342346,0.00035,120]
[359219096,1745834912715,-2000.0,0.00035068,120]
[359219097,1745834912748,-155.02,0.000352,31]
[359219098,1745834912777,-155.02,0.000352,31]
[359219099,1745834912808,-155.02,0.000352,31]
[359219100,1745834912839,-155.02,0.000352,31]
[359219101,1745834912873,-155.02,0.000352,31]
[359219102,1745834912901,-2000.0,0.00035342,120]
[359219103,1745834912929,-157.3664837,0.00035397,30]
[359219104,1745834912957,-567.0839203,0.00035397,30]
[359219105,1745834913133,-1581.16,0.00035399,84]
[359219106,1745834913165,-1581.16,0.00035499,33]
[359219107,1745834913193,-200.0,0.000355,120]
[359219108,1745834913220,-165.494053,0.00035599,30]
[359219109,1745834913249,-1581.16,0.00035599,50]
[359219110,1745834913277,-2000.0,0.00035616,120]
[359219111,1745834913305,-361.6458294,0.00035671,30]
[359219112,1745834913333,-1581.16,0.00035699,59]
[359219113,1745834913360,-2330.68,0.000357,30]
[359219114,1745834913386,-1581.16,0.00035799,79]
[359219115,1745834913416,-160.0,0.000358,49]
[359219116,1745834913445,-2000.0,0.0003589,120]
[359219117,1745834913471,-1581.16,0.00035899,78]
[359219118,1745834913497,-1581.16,0.00035999,75]
[359219119,1745834913523,-500.0,0.00036,120]
[359219120,1745834913550,-67062.54,0.00036,30]
[359219121,1745834913577,-1000.0,0.00036,120]
[359219122,1745834913603,-1581.16,0.00036099,75]
[359219123,1745834913631,-2000.0,0.00036164,120]
[359219124,1745834913657,-1581.16,0.00036199,64]
[359219125,1745834913685,-1894.53149499,0.000362,120]
[359219126,1745834913711,-1894.53149498,0.000362,120]
[359219127,1745834913737,-1894.53149498,0.000362,120]
[359219128,1745834913765,-1894.53149498,0.000362,120]
[359219129,1745834913790,-314.500439,0.00036219,30]
[359219130,1745834913818,-1581.16,0.00036299,68]
[359219131,1745834913845,-1581.16,0.00036399,70]
[359219132,1745834913873,-306.0,0.00036421,30]
[359219133,1745834913901,-1581.16,0.00036499,87]
[359219134,1745834913927,-591.679829,0.0003653,120]
[359219135,1745834913958,-1581.16,0.00036599,71]
[359219136,1745834913984,-1581.16,0.00036699,54]
[359219137,1745834914010,-2330.68,0.000367,30]
[359219138,1745834914039,-1581.16,0.00036799,60]
[359219139,1745834914067,-160.0,0.000368,52]
[359219140,1745834914093,-1581.16,0.00036899,47]
[359219141,1745834914119,-1581.16,0.00036999,30]
[359219142,1745834914146,-500.0,0.00037,120]
[359219143,1745834914175,-1581.16,0.00037099,85]
[359219144,1745834914211,-67062.54,0.000371,30]
[359219145,1745834914250,-200.0,0.000371,120]
[359219146,1745834914288,-1581.16,0.00037199,49]
[359219147,1745834914323,-1581.16,0.00037299,41]
[359219148,1745834914363,-1581.16,0.00037399,83]
[359219149,1745834914398,-1581.16,0.00037499,61]
[359219150,1745834914436,-2000.0,0.000375,120]
[359219151,1745834914473,-2000.0,0.000375,120]
[359219152,1745834914505,-2000.0,0.000375,120]
[359219153,1745834914541,-2000.0,0.000375,120]
[359219154,1745834914579,-2000.0,0.000375,120]
[359219155,1745834914614,-2000.0,0.000375,120]
[359219156,1745834914646,-2000.0,0.000375,120]
[359219157,1745834914684,-2000.0,0.000375,120]
[359219158,1745834914715,-2000.0,0.000375,120]
[359219159,1745834914747,-2000.0,0.000375,120]
[359219160,1745834914776,-2000.0,0.000375,120]
[359219161,1745834914810,-2000.0,0.000375,120]
[359219162,1745834914839,-2000.0,0.000375,120]
[359219163,1745834914871,-2000.0,0.000375,120]
[359219164,1745834914906,-2000.0,0.000375,120]
[359219165,1745834914939,-2000.0,0.000375,120]
[359219166,1745834914971,-2000.0,0.000375,120]
[359219167,1745834915004,-2000.0,0.000375,120]
[359219168,1745834915034,-2000.0,0.000375,120]
[359219169,1745834915065,-2000.0,0.000375,120]
[359219170,1745834915096,-2000.0,0.000375,120]
[359219171,1745834915127,-2000.0,0.000375,120]
[359219172,1745834915158,-2000.0,0.000375,120]
[359219173,1745834915191,-2000.0,0.000375,120]
[359219174,1745834915223,-2000.0,0.000375,120]
[359219175,1745834915254,-2000.0,0.000375,120]
[359219176,1745834915285,-2000.0,0.000375,120]
[359219177,1745834915315,-2000.0,0.000375,120]
[359219178,1745834915346,-2000.0,0.000375,120]
[359219179,1745834915378,-2000.0,0.000375,120]
[359219180,1745834915408,-2000.0,0.000375,120]
[359219181,1745834915439,-2000.0,0.000375,120]
[359219182,1745834915470,-2000.0,0.000375,120]
[359219183,1745834915500,-2000.0,0.000375,120]
[359219184,1745834915677,-150.0,0.000375,112]
[359219185,1745834915703,-2000.0,0.000375,120]
[359219186,1745834915727,-2000.0,0.000375,120]
[359219187,1745834915753,-200.0,0.00037585,120]
[359219188,1745834915779,-1581.16,0.00037599,50]
[359219189,1745834915805,-1581.16,0.00037699,43]
[359219190,1745834915830,-200.0,0.00037757,120]
[359219191,1745834915854,-1581.16,0.00037799,85]
[359219192,1745834915880,-160.0,0.000378,55]
[359219193,1745834915907,-200.0,0.00037885,120]
[359219194,1745834915933,-1581.16,0.00037899,79]
[359219195,1745834915960,-82353.88897945,0.000379,60]
[359219196,1745834915987,-1581.16,0.00037999,62]
[359219197,1745834916014,-200.0,0.00038,120]
[359219198,1745834916039,-500.0,0.00038,120]
[359219199,1745834916065,-1000.0,0.00038,120]
[359219200,1745834916090,-1581.16,0.00038099,79]
[359219201,1745834916116,-1581.16,0.00038199,46]
[359219202,1745834916142,-67062.54,0.000382,30]
[359219203,1745834916173,-273.18331971,0.00038235,120]
[359219204,1745834916202,-200.0,0.00038245,120]
[359219205,1745834916228,-1581.16,0.00038299,40]
[359219206,1745834916253,-2000.0,0.00038356,120]
[359219207,1745834916279,-1581.16,0.00038399,120]
[359219208,1745834916307,-200.0,0.00038405,120]
[359219209,1745834916333,-200.0,0.0003841,120]
[359219210,1745834916358,-1581.16,0.00038499,120]
[359219211,1745834916382,-2000.0,0.000385,120]
[359219212,1745834916407,-2000.0,0.000385,120]
[359219213,1745834916431,-2000.0,0.000385,120]
[359219214,1745834916459,-2000.0,0.000385,120]
[359219215,1745834916484,-2000.0,0.000385,120]
[359219216,1745834916509,-2000.0,0.000385,120]
[359219217,1745834916534,-2000.0,0.000385,120]
[359219218,1745834916558,-2000.0,0.000385,120]
[359219219,1745834916582,-2000.0,0.000385,120]
[359219220,1745834916608,-2000.0,0.000385,120]
[359219221,1745834916634,-2000.0,0.000385,120]
[359219222,1745834916658,-2000.0,0.000385,120]
[359219223,1745834916684,-2000.0,0.000385,120]
[359219224,1745834916710,-2000.0,0.000385,120]
[359219225,1745834916735,-2000.0,0.000385,120]
[359219226,1745834916761,-2000.0,0.000385,120]
[359219227,1745834916786,-255.8,0.000385,120]
[359219228,1745834916812,-200.0,0.00038511,120]
[359219229,1745834916837,-1200.0,0.00038568,60]
[359219230,1745834916863,-1581.16,0.00038599,120]
[359219231,1745834916889,-2000.0,0.0003863,120]
[359219232,1745834916914,-1581.16,0.00038699,120]
[359219233,1745834916940,-330.23576,0.000387,120]
[359219234,1745834916965,-1581.16,0.00038799,120]
[359219235,1745834916992,-2899.98,0.000388,90]
[359219236,1745834917018,-318.0,0.000388,57]
[359219237,1745834917043,-200.0,0.00038881,120]
[359219238,1745834917068,-1581.16,0.00038899,120]
[359219239,1745834917097,-2000.0,0.00038904,120]
[359219240,1745834917123,-1581.16,0.00038999,120]
[359219241,1745834917150,-3878.27649883,0.00039,120]
[359219242,1745834917178,-245.41787566,0.00039,120]
[359219243,1745834917205,-500.0,0.00039,120]
[359219244,1745834917231,-1581.16,0.00039099,120]
[359219245,1745834917256,-1200.0,0.00039116,60]
[359219246,1745834917281,-2000.0,0.00039178,120]
[359219247,1745834917308,-1581.16,0.00039199,120]
[359219248,1745834917333,-1581.16,0.00039299,120]
[359219249,1745834917359,-67062.54,0.000393,30]
[359219250,1745834917386,-200.0,0.00039325,120]
[359219251,1745834917411,-1581.16,0.00039399,120]
[359219252,1745834917435,-273.18331971,0.0003944,120]
[359219253,1745834917462,-1894.53149498,0.0003944,120]
[359219254,1745834917488,-2000.0,0.00039452,120]
[359219255,1745834917514,-1581.16,0.00039499,120]
[359219256,1745834917539,-2000.0,0.000395,120]
[359219257,1745834917563,-2000.0,0.000395,120]
[359219258,1745834917587,-2000.0,0.000395,120]
[359219259,1745834917613,-2000.0,0.000395,120]
[359219260,1745834917637,-2000.0,0.000395,120]
[359219261,1745834917671,-1581.16,0.00039599,120]
[359219262,1745834917806,-200.0,0.00039631,120]
[359219263,1745834917832,-1200.0,0.00039664,60]
[359219264,1745834917858,-1581.16,0.00039699,120]
[359219265,1745834917884,-2330.68,0.000397,30]
[359219266,1745834917909,-2000.0,0.00039726,120]
[359219267,1745834917935,-1581.16,0.00039799,120]
[359219268,1745834917961,-311.75420484,0.000398,60]
[359219269,1745834917988,-200.0,0.00039822,120]
[359219270,1745834918015,-1581.16,0.00039899,120]
[359219271,1745834918041,-2188.7365273,0.0003998,120]
[359219272,1745834918067,-1581.16,0.00039999,120]
[359219273,1745834918093,-1581.99075606,0.0004,120]
[359219274,1745834918119,-154.06721133,0.0004,120]
[359219275,1745834918146,-457.77278964,0.0004,30]
[359219276,1745834918173,-741.25580013,0.0004,120]
[359219277,1745834918198,-211.81727608,0.0004,120]
[359219278,1745834918223,-1061.00600007,0.0004,120]
[359219279,1745834918250,-341.63293605,0.0004,120]
[359219280,1745834918275,-172.25219357,0.0004,60]
[359219281,1745834918300,-3148.0,0.0004,120]
[359219282,1745834918327,-200.0,0.0004,120]
[359219283,1745834918352,-2000.0,0.0004,120]
[359219284,1745834918379,-2000.0,0.0004,120]
[359219285,1745834918404,-2000.0,0.0004,120]
[359219286,1745834918429,-2000.0,0.0004,120]
[359219287,1745834918456,-2000.0,0.0004,120]
[359219288,1745834918482,-2000.0,0.0004,120]
[359219289,1745834918508,-2000.0,0.0004,120]
[359219290,1745834918534,-2000.0,0.0004,120]
[359219291,1745834918560,-2000.0,0.0004,120]
[359219292,1745834918586,-2000.0,0.0004,120]
[359219293,1745834918611,-2000.0,0.0004,120]
[359219294,1745834918636,-2000.0,0.0004,120]
[359219295,1745834918661,-5731.12040554,0.0004,30]
[359219296,1745834918685,-316.21844954,0.0004,30]
[359219297,1745834918713,-2000.0,0.0004,120]
[359219298,1745834918738,-46141.60435014,0.0004,30]
[359219299,1745834918763,-500.0,0.0004,120]
[359219300,1745834918789,-421.20781996,0.0004,30]
[359219301,1745834918817,-160.0,0.0004,30]
[359219302,1745834918842,-1581.16,0.00040099,120]
[359219303,1745834918868,-1581.16,0.00040199,120]
[359219304,1745834918895,-1200.0,0.00040212,60]
[359219305,1745834918921,-2000.0,0.00040273,120]
[359219306,1745834918945,-200.0,0.00040284,120]
[359219307,1745834918968,-1581.16,0.00040299,120]
[359219308,1745834918993,-200.0,0.00040309,120]
[359219309,1745834919020,-200.0,0.00040318,120]
[359219310,1745834919046,-200.0,0.00040345,120]
[359219311,1745834919072,-1581.16,0.00040399,120]
[359219312,1745834919098,-67062.54,0.000404,30]
[359219313,1745834919124,-1581.16,0.00040499,120]
[359219314,1745834919150,-2000.0,0.00040547,120]
[359219315,1745834919178,-1581.16,0.00040599,120]
[359219316,1745834919206,-1333.0,0.00040658,120]
[359219317,1745834919232,-1581.16,0.00040699,120]
[359219318,1745834919259,-1200.0,0.0004076,60]
[359219319,1745834919284,-1581.16,0.00040799,120]
[359219320,1745834919310,-2000.0,0.00040821,120]
[359219321,1745834919337,-200.0,0.00040847,120]
[359219322,1745834919362,-1581.16,0.00040899,120]
[359219323,1745834919387,-1581.16,0.00040999,120]
[359219324,1745834919413,-1247.75519619,0.00041,120]
[359219325,1745834919437,-442.59173452,0.00041,120]
[359219326,1745834919462,-500.0,0.00041,30]
[359219327,1745834919488,-200.0,0.00041008,120]
[359219328,1745834919513,-200.0,0.00041017,120]
[359219329,1745834919539,-338.26027073,0.00041095,120]
[359219330,1745834919565,-591.679829,0.00041096,120]
[359219331,1745834919591,-500.0,0.00041096,31]
[359219332,1745834919617,-500.0,0.00041096,31]
[359219333,1745834919643,-500.0,0.00041096,31]
[359219334,1745834919669,-500.0,0.00041096,31]
[359219335,1745834919696,-500.0,0.00041096,31]
[359219336,1745834919721,-500.0,0.00041096,31]
[359219337,1745834919747,-500.0,0.00041096,31]
[359219338,1745834919773,-500.0,0.00041096,31]
[359219339,1745834919912,-500.0,0.00041096,31]
[359219340,1745834919939,-500.0,0.00041096,31]
[359219341,1745834919967,-500.0,0.00041096,31]
[359219342,1745834919994,-500.0,0.00041096,31]
[359219343,1745834920021,-500.0,0.00041096,31]
[359219344,1745834920048,-500.0,0.00041096,31]
[359219345,1745834920075,-500.0,0.00041096,31]
[359219346,1745834920101,-500.0,0.00041096,31]
[359219347,1745834920127,-500.0,0.00041096,31]
[359219348,1745834920157,-500.0,0.00041096,31]
[359219349,1745834920187,-500.0,0.00041096,31]
[359219350,1745834920214,-500.0,0.00041096,31]
[359219351,1745834920243,-500.0,0.00041096,31]
[359219352,1745834920269,-500.0,0.00041096,31]
[359219353,1745834920296,-517.59793236,0.00041096,31]
[359219354,1745834920323,-500.0,0.00041096,31]
[359219355,1745834920348,-500.0,0.00041096,31]
[359219356,1745834920374,-500.0,0.00041096,31]
[359219357,1745834920400,-500.0,0.00041096,31]
[359219358,1745834920425,-500.0,0.00041096,31]
[359219359,1745834920453,-500.0,0.00041096,31]
[359219360,1745834920478,-500.0,0.00041096,31]
[359219361,1745834920503,-500.0,0.00041096,31]
[359219362,1745834920529,-500.0,0.00041096,31]
[359219363,1745834920554,-500.0,0.00041096,31]
[359219364,1745834920579,-500.0,0.00041096,31]
[359219365,1745834920604,-500.0,0.00041096,31]
[359219366,1745834920629,-500.0,0.00041096,31]
[359219367,1745834920654,-500.0,0.00041096,31]
[359219368,1745834920683,-500.0,0.00041096,31]
[359219369,1745834920709,-500.0,0.00041096,31]
[359219370,1745834920735,-230.56764597,0.00041096,31]
[359219371,1745834920760,-500.0,0.00041096,31]
[359219372,1745834920785,-500.0,0.00041096,31]
[359219373,1745834920811,-500.0,0.00041096,31]
[359219374,1745834920837,-500.0,0.00041096,31]
[359219375,1745834920862,-500.0,0.00041096,31]
[359219376,1745834920887,-1581.16,0.00041099,120]
[359219377,1745834920912,-200.0,0.00041121,120]
[359219378,1745834920937,-934.21,0.00041166,30]
[359219379,1745834920965,-1581.16,0.00041199,120]
[359219380,1745834920990,-200.0,0.00041225,120]
[359219381,1745834921015,-1581.16,0.00041299,120]
[359219382,1745834921039,-776.52,0.00041369,30]
[359219383,1745834921064,-1581.16,0.00041399,120]
[359219384,1745834921088,-1581.16,0.00041499,120]
[359219385,1745834921113,-67062.54,0.000415,30]
[359219386,1745834921137,-480.91,0.000415,120]
[359219387,1745834921163,-1581.16,0.00041599,120]
[359219388,1745834921189,-200.0,0.00041664,120]
[359219389,1745834921215,-1581.16,0.00041699,120]
[359219390,1745834921240,-1581.16,0.00041799,120]
[359219391,1745834921266,-1200.0,0.00041856,60]
[359219392,1745834921290,-100571.8307441,0.00041898,120]
[359219393,1745834921314,-1581.16,0.00041899,120]
[359219394,1745834921341,-300.0,0.000419,30]
[359219395,1745834921366,-776.52,0.00041917,31]
[359219396,1745834921391,-150.5,0.0004197,120]
[359219397,1745834921415,-150.5,0.0004197,120]
[359219398,1745834921440,-1549.0,0.0004197,120]
[359219399,1745834921466,-1549.0,0.0004197,120]
[359219400,1745834921491,-150.5,0.0004198,120]
[359219401,1745834921515,-219.48,0.0004198,120]